[Event "49th Rilton Cup 2019-20"]
[Site "Stockholm"]
[Date "2020.01.03"]
[Round "7.11"]
[White "Lokander, Martin"]
[Black "Oratovsky, Michael"]
[Result "1/2-1/2"]
[ECO "C41"]
[WhiteElo "2397"]
[BlackElo "2423"]
[Annotator "NA"]
[PlyCount "106"]
[EventDate "2019.12.27"]
[EventType "swiss"]
[EventCountry "SWE"]
[SourceTitle "playchess.com"]
[Source "ChessBase"]
[SourceQuality "1"]
[TimeControl "40/5400+30:1800+30"]

1. d4 {[%emt 0:00:00]} d6 {[%emt 0:00:00]} 2. e4 {[%emt 0:01:24]} Nf6 {[%emt 0:00:00]} 3. Nc3 {[%emt 0:00:12]} e5 {[%emt 0:04:17]} 4. Nf3 {[%emt 0:00:31]} Nbd7 {[%emt 0:00:38]} 5. Bc4 {[%emt 0:00:32]} Be7 {[%emt 0:00:23]} 6. O-O {[%emt 0:03:13]} O-O {[%emt 0:01:52]} 7. Re1 {[%emt 0:00:26]} c6 {[%emt 0:01:29]} 8. a4 {[%emt 0:00:17]} exd4 {[%emt 0:01:26]} 9. Qxd4 {[%emt 0:00:54]} Ne5 {[%emt 0:03:52]} 10. Nxe5 {[%emt 0:02:38]} dxe5 {[%emt 0:01:28]} 11. Qxe5 {[%emt 0:03:10]} Ng4 {[%emt 0:03:31]} 12. Qf4 {[%emt 0:00:39]} Bd6 {[%emt 0:00:11]} 13. e5 {[%emt 0:36:53]} Nxe5 {[%emt 0:00:17]} 14. Rd1 {[%emt 0:04:47]} Nxc4 {[%emt 0:17:38]} 15. Qxc4 {[%emt 0:00:20]} Qc7 {[%emt 0:03:10]} 16. Qh4 {[%emt 0:01:03]} Bf5 {[%emt 0:03:51]} 17. Be3 {[%emt 0:00:14]} Bxc2 {[%emt 0:04:28]} 18. Rdc1 {[%emt 0:00:52]} Bd3 {[%emt 0:32:12]} 19. Nb5 {[%emt 0:02:49]} Bxh2+ {[%emt 0:04:31]} 20. Qxh2 {[%emt 0:01:32]} Qxh2+ {[%emt 0:00:05]} 21. Kxh2 {[%emt 0:00:02]} cxb5 {[%emt 0:00:07]} 22. Rc3 {[%emt 0:03:13]} Be2 {[%emt 0:01:22]} 23. axb5 {[%emt 0:02:12]} Bxb5 {[%emt 0:00:25]} 24. Rxa7 {[%emt 0:00:07]} Bc6 {[%emt 0:01:47]} 25. Rxa8 {[%emt 0:00:32]} Rxa8 {[%emt 0:00:03]} 26. Ra3 {[%emt 0:00:21]} Re8 {[%emt 0:03:36]} 27. Bb6 {[%emt 0:00:56]} f6 {[%emt 0:03:49]} 28. Re3 {[%emt 0:00:16]} Ra8 {[%emt 0:00:41]} 29. Ra3 {[%emt 0:00:47]} Re8 {[%emt 0:02:22]} 30. Re3 {[%emt 0:00:11]} Ra8 {[%emt 0:00:12]} 31. Ra3 {[%emt 0:00:03]} Rc8 {[%emt 0:00:06]} 32. Rd3 {[%emt 0:00:07]} Be8 {[%emt 0:00:41]} 33. Rc3 {[%emt 0:00:31]} Ra8 {[%emt 0:02:51]} 34. Ra3 {[%emt 0:00:06]} Rb8 {[%emt 0:01:47]} 35. Rd3 {[%emt 0:00:02]} Rc8 {[%emt 0:00:50]} 36. Rc3 {[%emt 0:00:12]} Rxc3 {[%emt 0:00:16]} 37. bxc3 {[%emt 0:00:03]} Kf7 {[%emt 0:00:07]} 38. f4 {[%emt 0:00:36]} Ke6 {[%emt 0:00:40]} 39. Bc5 {[%emt 0:00:07]} h5 {[%emt 0:01:43]} 40. Bf8 {[%emt 0:00:14]} Kf7 {[%emt 0:00:05]} 41. Bc5 {[%emt 0:30:04]} Bc6 {[%emt 0:30:36]} 42. g3 {[%emt 0:00:18]} b5 {[%emt 0:00:14]} 43. Kg1 {[%emt 0:00:08]} Ke6 {[%emt 0:00:50]} 44. Bf8 {[%emt 0:00:24]} Kf7 {[%emt 0:00:46]} 45. Bc5 {[%emt 0:00:04]} g6 {[%emt 0:00:05]} 46. Kf2 {[%emt 0:00:54]} Ke6 {[%emt 0:00:09]} 47. Ke3 {[%emt 0:00:19]} Kf5 {[%emt 0:00:13]} 48. Be7 {[%emt 0:00:11]} Kg4 {[%emt 0:01:37]} 49. Kf2 {[%emt 0:00:03]} Kf5 {[%emt 0:00:37]} 50. Ke3 {[%emt 0:00:03]} g5 {[%emt 0:00:14]} 51. fxg5 {[%emt 0:00:03]} fxg5 {[%emt 0:00:04]} 52. Kf2 {[%emt 0:00:11]} Kg4 {[%emt 0:00:12]} 53. Bd8 {[%emt 0:00:13]} h4 {[%emt 0:00:37]} 1/2-1/2

[Event "49th Rilton Cup 2019-20"]
[Site "Stockholm"]
[Date "2020.01.03"]
[Round "7.12"]
[White "Kaasen, Tor Fredrik"]
[Black "Savanovic, Aleksandar"]
[Result "1-0"]
[ECO "C83"]
[WhiteElo "2385"]
[BlackElo "2420"]
[Annotator "NA"]
[PlyCount "107"]
[EventDate "2019.12.27"]
[EventType "swiss"]
[EventCountry "SWE"]
[SourceTitle "playchess.com"]
[Source "ChessBase"]
[SourceQuality "1"]
[TimeControl "40/5400+30:1800+30"]

1. e4 {[%emt 0:04:31]} e5 {[%emt 0:00:00]} 2. Nf3 {[%emt 0:00:53]} Nc6 {[%emt 0:00:00]} 3. Bb5 {[%emt 0:00:23]} a6 {[%emt 0:00:00]} 4. Ba4 {[%emt 0:00:09]} Nf6 {[%emt 0:00:00]} 5. O-O {[%emt 0:00:25]} Nxe4 6. d4 {[%emt 0:01:09]} b5 {[%emt 0:00:29]} 7. Bb3 {[%emt 0:00:08]} d5 {[%emt 0:00:29]} 8. dxe5 {[%emt 0:00:35]} Be6 {[%emt 0:00:09]} 9. c3 {[%emt 0:03:29]} Be7 {[%emt 0:00:21]} 10. Be3 {[%emt 0:02:12]} O-O {[%emt 0:01:06]} 11. Nbd2 {[%emt 0:00:51]} Bg4 {[%emt 0:01:27]} 12. Bf4 {[%emt 0:11:07]} Nc5 {[%emt 0:16:33]} 13. Bc2 {[%emt 0:02:32]} d4 {[%emt 0:09:20]} 14. h3 {[%emt 0:07:19]} Bh5 {[%emt 0:01:20]} 15. Re1 {[%emt 0:03:10]} dxc3 {[%emt 0:01:31]} 16. bxc3 {[%emt 0:00:34]} Nd3 {[%emt 0:01:05]} 17. Bxd3 {[%emt 0:10:27]} Qxd3 {[%emt 0:00:08]} 18. Nb3 {[%emt 0:06:43]} Rad8 {[%emt 0:08:22]} 19. Qxd3 {[%emt 0:02:57]} Rxd3 {[%emt 0:00:11]} 20. Nfd4 {[%emt 0:00:23]} Rxc3 {[%emt 0:12:31]} 21. Rac1 {[%emt 0:02:36]} Nxd4 {[%emt 0:06:16]} 22. Rxc3 {[%emt 0:11:00]} Bb4 {[%emt 0:00:11]} 23. Rcc1 {[%emt 0:00:55]} Nxb3 {[%emt 0:10:42]} 24. axb3 {[%emt 0:00:23]} Bxe1 {[%emt 0:00:05]} 25. Rxe1 {[%emt 0:00:05]} c5 {[%emt 0:00:10]} 26. Ra1 {[%emt 0:05:55]} Ra8 {[%emt 0:01:52]} 27. Be3 {[%emt 0:00:51]} c4 {[%emt 0:00:10]} 28. bxc4 {[%emt 0:00:29]} bxc4 {[%emt 0:00:30]} 29. g4 {[%emt 0:05:25]} Bg6 {[%emt 0:00:06]} 30. f4 {[%emt 0:00:11]} Be4 {[%emt 0:02:36]} 31. Ra4 {[%emt 0:02:18]} Bd3 {[%emt 0:03:26]} 32. Kf2 {[%emt 0:01:05]} g6 {[%emt 0:03:14]} 33. Bd4 {[%emt 0:02:27]} Kf8 {[%emt 0:01:23]} 34. Ke3 {[%emt 0:00:21]} Ke7 {[%emt 0:00:07]} 35. Rb4 {[%emt 0:00:46]} Bf1 {[%emt 0:11:35]} 36. Rb7+ {[%emt 0:00:51]} Ke8 {[%emt 0:02:08]} 37. f5 {[%emt 0:05:37]} gxf5 {[%emt 0:00:43]} 38. gxf5 {[%emt 0:00:10]} Rc8 {[%emt 0:01:33]} 39. e6 {[%emt 0:02:01]} fxe6 {[%emt 0:00:20]} 40. f6 {[%emt 0:01:05]} c3 {[%emt 0:00:20]} 41. Be5 {[%emt 0:08:38]} Rc6 {[%emt 0:01:04]} 42. Re7+ {[%emt 0:00:16]} Kd8 {[%emt 0:00:48]} 43. Bc7+ {[%emt 0:00:12]} Rxc7 {[%emt 0:01:35]} 44. Rxc7 {[%emt 0:00:12]} Ke8 {[%emt 0:00:08]} 45. Rxh7 {[%emt 0:00:18]} c2 {[%emt 0:00:57]} 46. Kd2 {[%emt 0:00:10]} Bd3 {[%emt 0:00:07]} 47. Rc7 {[%emt 0:04:24]} Bg6 {[%emt 0:01:58]} 48. h4 {[%emt 0:02:24]} a5 {[%emt 0:00:11]} 49. Rg7 {[%emt 0:00:26]} Bf7 {[%emt 0:00:20]} 50. Kxc2 {[%emt 0:01:13]} a4 {[%emt 0:00:53]} 51. Kb2 {[%emt 0:01:21]} e5 {[%emt 0:01:10]} 52. Rg5 {[%emt 0:01:17]} Be6 {[%emt 0:00:12]} 53. h5 {[%emt 0:01:42]} Kf7 {[%emt 0:00:15]} 54. h6 {[%emt 0:00:12]} 1-0

[Event "49th Rilton Cup 2019-20"]
[Site "Stockholm"]
[Date "2020.01.03"]
[Round "7.15"]
[White "Ivanov, Sergey"]
[Black "Sorensen, Hampus"]
[Result "1-0"]
[ECO "D43"]
[WhiteElo "2478"]
[BlackElo "2364"]
[Annotator "ChessBase"]
[PlyCount "77"]
[EventDate "2019.12.27"]
[EventType "swiss"]
[EventCountry "SWE"]
[SourceTitle "playchess.com"]
[Source "ChessBase"]
[SourceQuality "1"]
[TimeControl "40/5400+30:1800+30"]

1. d4 {[%emt 0:00:00]} d5 {[%emt 0:00:00]} 2. c4 {[%emt 0:00:00]} c6 {[%emt 0:00:12]} 3. Nc3 {[%emt 0:00:00]} Nf6 {[%emt 0:00:34]} 4. Nf3 {[%emt 0:00:07]} e6 {[%emt 0:00:09]} 5. Bg5 {[%emt 0:00:11]} h6 {[%emt 0:02:08]} 6. Bxf6 {[%emt 0:00:20]} Qxf6 {[%emt 0:00:44]} 7. e3 {[%emt 0:00:08]} Nd7 {[%emt 0:04:10]} 8. Bd3 {[%emt 0:01:03]} dxc4 {[%emt 0:01:43]} 9. Bxc4 {[%emt 0:00:18]} g6 {[%emt 0:00:37]} 10. O-O {[%emt 0:03:22]} Bg7 {[%emt 0:01:21]} 11. Re1 {[%emt 0:01:55]} O-O {[%emt 0:04:10]} 12. e4 {[%emt 0:00:36]} e5 {[%emt 0:01:15]} 13. d5 {[%emt 0:00:33]} Nb6 {[%emt 0:02:11]} 14. Bb3 {[%emt 0:02:45]} Bg4 {[%emt 0:06:06]} 15. Re3 {[%emt 0:00:54]} Rad8 {[%emt 0:16:03]} 16. Qe2 {[%emt 0:05:59]} Qe7 {[%emt 0:10:32]} 17. h3 {[%emt 0:06:21]} Bc8 {[%emt 0:00:15]} 18. dxc6 {[%emt 0:03:03]} bxc6 {[%emt 0:01:06]} 19. Na4 {[%emt 0:00:37]} Rd6 {[%emt 0:05:47]} 20. Rc1 {[%emt 0:04:49]} Rfd8 {[%emt 0:08:43]} 21. Rec3 {[%emt 0:01:02]} Qe8 {[%emt 0:02:33]} 22. Rc5 {[%emt 0:05:04]} Nd7 {[%emt 0:10:44]} 23. Rxc6 {[%emt 0:08:12]} Rxc6 {[%emt 0:01:21]} 24. Rxc6 {[%emt 0:00:08]} Nf8 {[%emt 0:01:38]} 25. Rc7 {[%emt 0:03:05]} Rd7 {[%emt 0:00:24]} 26. Qc2 {[%emt 0:06:02]} Bb7 {[%emt 0:02:01]} 27. Nd2 {[%emt 0:05:40]} Bf6 {[%emt 0:08:32]} 28. Rxd7 {[%emt 0:03:16]} Nxd7 {[%emt 0:00:40]} 29. Nc5 {[%emt 0:10:57]} Nxc5 {[%emt 0:04:44]} 30. Qxc5 {[%emt 0:00:08]} Qd7 {[%emt 0:02:45]} 31. Nc4 {[%emt 0:13:46]} Qd4 {[%emt 0:01:49]} 32. Qxd4 {[%emt 0:01:15]} exd4 {[%emt 0:00:01]} 33. Nd6 {[%emt 0:00:17]} Bc6 {[%emt 0:00:56]} 34. Bxf7+ {[%emt 0:00:57]} Kg7 {[%emt 0:00:23]} 35. Bd5 {[%emt 0:01:13]} Bxd5 {[%emt 0:00:30]} 36. exd5 {[%emt 0:00:08]} d3 {[%emt 0:00:06]} 37. Nc4 {[%emt 0:00:31]} d2 {[%emt 0:00:55]} 38. Nxd2 {[%emt 0:00:08]} Bxb2 {[%emt 0:00:01]} 39. Ne4 {[%emt 0:01:14]} 1-0

[Event "49th Rilton Cup 2019-20"]
[Site "Stockholm"]
[Date "2020.01.03"]
[Round "7.20"]
[White "Eggleston, David J"]
[Black "Valkama, Eero"]
[Result "0-1"]
[ECO "A14"]
[WhiteElo "2404"]
[BlackElo "2249"]
[Annotator "NA"]
[PlyCount "148"]
[EventDate "2019.12.27"]
[EventType "swiss"]
[EventCountry "SWE"]
[SourceTitle "playchess.com"]
[Source "ChessBase"]
[SourceQuality "1"]
[TimeControl "40/5400+30:1800+30"]

1. Nf3 {[%emt 0:03:28]} Nf6 {[%emt 0:00:30]} 2. c4 {[%emt 0:00:22]} e6 {[%emt 0:00:10]} 3. g3 {[%emt 0:00:43]} d5 {[%emt 0:00:10]} 4. Bg2 {[%emt 0:00:07]} Be7 {[%emt 0:00:05]} 5. O-O {[%emt 0:00:05]} O-O {[%emt 0:00:07]} 6. d4 {[%emt 0:00:35]} c6 {[%emt 0:00:06]} 7. Nbd2 {[%emt 0:01:39]} b6 {[%emt 0:00:47]} 8. b3 {[%emt 0:01:37]} Nbd7 {[%emt 0:00:53]} 9. Bb2 {[%emt 0:00:45]} Bb7 {[%emt 0:01:11]} 10. Rc1 {[%emt 0:03:08]} c5 {[%emt 0:06:49]} 11. e3 {[%emt 0:03:16]} Rc8 {[%emt 0:03:45]} 12. Re1 {[%emt 0:00:18]} Re8 {[%emt 0:13:53]} 13. Ne5 {[%emt 0:06:32]} Qc7 {[%emt 0:05:31]} 14. Ndf3 {[%emt 0:06:50]} dxc4 {[%emt 0:04:55]} 15. bxc4 {[%emt 0:00:07]} Nxe5 {[%emt 0:07:15]} 16. Nxe5 {[%emt 0:00:46]} Red8 {[%emt 0:02:57]} 17. Qe2 {[%emt 0:02:07]} Bxg2 {[%emt 0:01:01]} 18. Kxg2 {[%emt 0:00:00]} Qb7+ {[%emt 0:00:00]} 19. Qf3 {[%emt 0:01:13]} Qxf3+ {[%emt 0:01:21]} 20. Kxf3 {[%emt 0:00:22]} Nd7 {[%emt 0:00:26]} 21. Nd3 {[%emt 0:16:46]} Bf6 {[%emt 0:09:03]} 22. Red1 {[%emt 0:06:31]} cxd4 {[%emt 0:07:34]} 23. exd4 {[%emt 0:00:44]} Rc7 {[%emt 0:07:47]} 24. Rc2 {[%emt 0:12:38]} Rdc8 {[%emt 0:04:53]} 25. Rdc1 {[%emt 0:00:20]} Bg5 {[%emt 0:00:52]} 26. Nf4 {[%emt 0:00:44]} Nf6 {[%emt 0:02:05]} 27. a3 {[%emt 0:10:17]} Nd5 {[%emt 0:03:25]} 28. h4 {[%emt 0:01:16]} Nxf4 {[%emt 0:03:25]} 29. gxf4 {[%emt 0:03:46]} Bxh4 {[%emt 0:00:07]} 30. c5 {[%emt 0:02:00]} Rc6 {[%emt 0:02:04]} 31. f5 {[%emt 0:02:56]} Be7 {[%emt 0:02:33]} 32. fxe6 {[%emt 0:01:41]} fxe6 {[%emt 0:00:02]} 33. Re2 {[%emt 0:03:13]} Kf7 {[%emt 0:00:58]} 34. Rh1 {[%emt 0:02:22]} bxc5 {[%emt 0:08:46]} 35. Rxh7 {[%emt 0:00:07]} Bf6 {[%emt 0:00:19]} 36. dxc5 {[%emt 0:00:33]} Rxc5 {[%emt 0:00:12]} 37. Bxf6 {[%emt 0:00:00]} Kxf6 {[%emt 0:00:00]} 38. Rh4 {[%emt 0:01:23]} Rc3+ {[%emt 0:02:22]} 39. Re3 {[%emt 0:00:02]} Rxe3+ {[%emt 0:00:09]} 40. fxe3 {[%emt 0:00:07]} Rc5 {[%emt 0:00:05]} 41. Rd4 {[%emt 0:31:44]} g5 {[%emt 0:03:25]} 42. Kg4 {[%emt 0:00:00]} Ra5 {[%emt 0:04:46]} 43. a4 {[%emt 0:00:00]} Re5 {[%emt 0:00:07]} 44. Kf3 {[%emt 0:00:00]} Kf5 {[%emt 0:01:40]} 45. Rc4 {[%emt 0:00:00]} Ra5 {[%emt 0:01:46]} 46. Re4 {[%emt 0:00:00]} Rc5 {[%emt 0:01:41]} 47. Rb4 {[%emt 0:00:00]} a5 {[%emt 0:00:58]} 48. Rg4 {[%emt 0:00:00]} Rc1 {[%emt 0:01:01]} 49. Rd4 {[%emt 0:00:00]} Kf6 {[%emt 0:06:46]} 50. Re4 {[%emt 0:00:00]} e5 {[%emt 0:08:16]} 51. Rg4 {[%emt 0:00:00]} Kf5 {[%emt 0:00:09]} 52. e4+ {[%emt 0:00:00]} Kf6 {[%emt 0:00:07]} 53. Rg2 {[%emt 0:00:00]} Rc3+ {[%emt 0:00:16]} 54. Kg4 {[%emt 0:00:00]} Re3 {[%emt 0:01:48]} 55. Kh5 {[%emt 0:00:00]} Rxe4 {[%emt 0:00:20]} 56. Rxg5 {[%emt 0:00:00]} Rxa4 {[%emt 0:00:05]} 57. Rg6+ {[%emt 0:00:00]} Kf5 {[%emt 0:00:06]} 58. Rg5+ {[%emt 0:00:00]} Ke6 {[%emt 0:00:04]} 59. Rg6+ {[%emt 0:00:00]} Kd5 {[%emt 0:00:04]} 60. Kg5 {[%emt 0:00:00]} Ke4 {[%emt 0:01:40]} 61. Kf6 {[%emt 0:00:00]} Kf4 {[%emt 0:01:25]} 62. Rh6 {[%emt 0:00:00]} e4 {[%emt 0:00:10]} 63. Rh4+ {[%emt 0:00:00]} Kg3 {[%emt 0:02:03]} 64. Kg5 {[%emt 0:00:18]} Rb4 {[%emt 0:00:11]} 65. Rg4+ {[%emt 0:00:20]} Kf3 {[%emt 0:00:10]} 66. Rf4+ {[%emt 0:00:02]} Ke2 {[%emt 0:00:12]} 67. Rf5 {[%emt 0:00:11]} a4 {[%emt 0:01:20]} 68. Kg4 {[%emt 0:00:02]} e3+ {[%emt 0:00:13]} 69. Kg3 {[%emt 0:00:03]} Ke1 {[%emt 0:01:01]} 70. Kf3 {[%emt 0:01:42]} e2 {[%emt 0:00:06]} 71. Re5 {[%emt 0:00:07]} Rb3+ {[%emt 0:00:08]} 72. Kg2 {[%emt 0:00:06]} a3 {[%emt 0:01:47]} 73. Ra5 {[%emt 0:00:14]} Kd2 {[%emt 0:00:10]} 74. Rd5+ {[%emt 0:00:09]} Rd3 {[%emt 0:00:05]} 0-1

[Event "49th Rilton Cup 2019-20"]
[Site "Stockholm"]
[Date "2020.01.03"]
[Round "7.21"]
[White "Sidhant, Mohapatra"]
[Black "Lindberg, Bengt"]
[Result "1-0"]
[ECO "B91"]
[WhiteElo "2338"]
[BlackElo "2401"]
[Annotator "NA"]
[PlyCount "101"]
[EventDate "2019.12.27"]
[EventType "swiss"]
[EventCountry "SWE"]
[SourceTitle "playchess.com"]
[Source "ChessBase"]
[SourceQuality "1"]
[TimeControl "40/5400+30:1800+30"]

1. e4 {[%emt 0:00:00]} c5 {[%emt 0:00:00]} 2. Nf3 {[%emt 0:00:05]} d6 {[%emt 0:00:21]} 3. d4 {[%emt 0:03:38]} cxd4 {[%emt 0:00:18]} 4. Nxd4 {[%emt 0:00:08]} Nf6 {[%emt 0:00:15]} 5. Nc3 {[%emt 0:00:06]} a6 {[%emt 0:00:27]} 6. g3 {[%emt 0:02:27]} g6 {[%emt 0:02:14]} 7. Bg2 {[%emt 0:00:44]} Bg7 {[%emt 0:00:33]} 8. O-O {[%emt 0:00:37]} O-O {[%emt 0:02:53]} 9. a4 {[%emt 0:00:34]} Bd7 {[%emt 0:04:35]} 10. Nd5 {[%emt 0:09:35]} Nc6 {[%emt 0:13:32]} 11. Nb3 {[%emt 0:00:54]} Nxd5 {[%emt 0:08:11]} 12. exd5 {[%emt 0:00:17]} Ne5 {[%emt 0:00:10]} 13. Nd4 {[%emt 0:04:12]} Rc8 {[%emt 0:05:42]} 14. h3 {[%emt 0:00:39]} b5 {[%emt 0:12:48]} 15. axb5 {[%emt 0:04:23]} axb5 {[%emt 0:00:06]} 16. b3 {[%emt 0:01:18]} f5 {[%emt 0:01:27]} 17. f4 {[%emt 0:02:02]} Nf7 {[%emt 0:00:45]} 18. Kh2 {[%emt 0:03:22]} h5 {[%emt 0:02:47]} 19. Re1 {[%emt 0:03:56]} Bf6 {[%emt 0:01:25]} 20. Bb2 {[%emt 0:02:05]} Qb6 {[%emt 0:01:46]} 21. Rb1 {[%emt 0:02:17]} Rfe8 {[%emt 0:17:23]} 22. Qd3 {[%emt 0:05:45]} b4 {[%emt 0:00:35]} 23. g4 {[%emt 0:00:46]} hxg4 {[%emt 0:02:06]} 24. hxg4 {[%emt 0:00:06]} Nh6 {[%emt 0:05:10]} 25. Bf3 {[%emt 0:03:22]} Bb5 {[%emt 0:01:27]} 26. Qxb5 {[%emt 0:18:47]} Bxd4 {[%emt 0:00:19]} 27. Qxb6 {[%emt 0:00:42]} Bxb6 {[%emt 0:03:20]} 28. Re2 {[%emt 0:00:37]} fxg4 {[%emt 0:00:31]} 29. Be4 {[%emt 0:00:07]} Nf5 {[%emt 0:02:41]} 30. Kg2 {[%emt 0:01:02]} e5 {[%emt 0:08:35]} 31. dxe6 {[%emt 0:01:06]} Rc7 {[%emt 0:01:03]} 32. Rh1 {[%emt 0:02:15]} Rh7 {[%emt 0:00:07]} 33. Rxh7 {[%emt 0:01:06]} Kxh7 {[%emt 0:00:02]} 34. Bc6 {[%emt 0:00:01]} Re7 {[%emt 0:02:11]} 35. Bf6 {[%emt 0:00:04]} Bd8 {[%emt 0:00:55]} 36. Bxe7 {[%emt 0:00:10]} Bxe7 {[%emt 0:00:25]} 37. Bd5 {[%emt 0:01:44]} Bd8 {[%emt 0:00:39]} 38. Re4 {[%emt 0:03:03]} Ne7 {[%emt 0:00:16]} 39. Bb7 {[%emt 0:00:37]} Ba5 {[%emt 0:00:52]} 40. Kg3 {[%emt 0:01:59]} Kg7 {[%emt 0:00:23]} 41. Kxg4 {[%emt 0:30:07]} Kf6 {[%emt 0:30:27]} 42. Kf3 {[%emt 0:00:40]} d5 {[%emt 0:00:00]} 43. Bxd5 {[%emt 0:00:00]} Bc7 {[%emt 0:00:00]} 44. Bc4 {[%emt 0:00:00]} Bd6 {[%emt 0:00:00]} 45. Rd4 {[%emt 0:00:00]} Nf5 {[%emt 0:00:00]} 46. Rd1 {[%emt 0:00:00]} Bc5 {[%emt 0:00:00]} 47. Rd7 {[%emt 0:00:00]} Ne7 {[%emt 0:00:00]} 48. Ke4 {[%emt 0:00:00]} Bf2 {[%emt 0:00:00]} 49. Rd8 {[%emt 0:00:00]} Nc6 {[%emt 0:00:00]} 50. Rc8 {[%emt 0:00:00]} Nd4 {[%emt 0:00:00]} 51. Rc7 {[%emt 0:00:00]} 1-0

[Event "49th Rilton Cup 2019-20"]
[Site "Stockholm"]
[Date "2020.01.03"]
[Round "7.23"]
[White "Percivaldi, Martin"]
[Black "Acikel, Mert"]
[Result "1-0"]
[ECO "E07"]
[WhiteElo "2386"]
[BlackElo "2094"]
[Annotator "NA"]
[PlyCount "61"]
[EventDate "2019.12.27"]
[EventType "swiss"]
[EventCountry "SWE"]
[SourceTitle "playchess.com"]
[Source "ChessBase"]
[SourceQuality "1"]
[TimeControl "40/5400+30:1800+30"]

1. Nf3 {[%emt 0:00:39]} d5 {[%emt 0:00:00]} 2. g3 {[%emt 0:00:56]} Nf6 {[%emt 0:00:30]} 3. Bg2 {[%emt 0:00:30]} e6 {[%emt 0:00:30]} 4. c4 {[%emt 0:00:54]} Be7 {[%emt 0:00:30]} 5. O-O {[%emt 0:00:30]} O-O {[%emt 0:00:30]} 6. d4 {[%emt 0:00:30]} c6 {[%emt 0:00:30]} 7. Nc3 {[%emt 0:00:34]} Nbd7 {[%emt 0:00:30]} 8. Qd3 {[%emt 0:00:30]} b6 {[%emt 0:01:30]} 9. e4 {[%emt 0:00:30]} dxc4 {[%emt 0:00:55]} 10. Qxc4 {[%emt 0:01:33]} Bb7 {[%emt 0:00:30]} 11. Rd1 {[%emt 0:01:34]} a6 {[%emt 0:07:33]} 12. Qe2 {[%emt 0:04:12]} b5 {[%emt 0:10:38]} 13. a3 {[%emt 0:05:20]} a5 {[%emt 0:20:13]} 14. e5 {[%emt 0:04:10]} Ne8 {[%emt 0:04:15]} 15. Ne4 {[%emt 0:01:05]} Nc7 {[%emt 0:04:06]} 16. Bg5 {[%emt 0:04:31]} c5 {[%emt 0:04:38]} 17. dxc5 {[%emt 0:03:43]} Bxe4 {[%emt 0:07:04]} 18. Qxe4 {[%emt 0:00:57]} Nd5 {[%emt 0:00:30]} 19. Bxe7 {[%emt 0:08:55]} Qxe7 {[%emt 0:00:30]} 20. b4 {[%emt 0:03:05]} Nc3 {[%emt 0:02:35]} 21. Qb7 {[%emt 0:00:30]} Nxd1 {[%emt 0:05:13]} 22. Rxd1 {[%emt 0:00:30]} axb4 {[%emt 0:05:45]} 23. axb4 {[%emt 0:02:10]} Rfd8 {[%emt 0:00:48]} 24. Nd4 {[%emt 0:02:21]} Qf8 {[%emt 0:02:23]} 25. Qxb5 {[%emt 0:02:53]} Rab8 {[%emt 0:00:41]} 26. Qe2 {[%emt 0:08:15]} Nxc5 {[%emt 0:00:56]} 27. bxc5 {[%emt 0:00:41]} Qxc5 {[%emt 0:00:30]} 28. Nc6 {[%emt 0:00:30]} Rxd1+ {[%emt 0:00:30]} 29. Qxd1 {[%emt 0:00:30]} Rc8 {[%emt 0:01:32]} 30. Be4 {[%emt 0:01:04]} f5 {[%emt 0:02:57]} 31. Qd7 {[%emt 0:01:08]} 1-0

[Event "49th Rilton Cup 2019-20"]
[Site "Stockholm"]
[Date "2020.01.04"]
[Round "8.3"]
[White "Meshkovs, Nikita"]
[Black "Kulaots, Kaido"]
[Result "1/2-1/2"]
[ECO "A04"]
[WhiteElo "2558"]
[BlackElo "2538"]
[Annotator "ChessBase"]
[PlyCount "69"]
[EventDate "2019.12.27"]
[EventType "swiss"]
[EventCountry "SWE"]
[SourceTitle "playchess.com"]
[Source "ChessBase"]
[SourceQuality "1"]
[TimeControl "40/5400+30:1800+30"]

1. Nf3 {[%emt 0:00:00]} g6 {[%emt 0:00:02]} 2. g3 {[%emt 0:02:06]} Bg7 {[%emt 0:00:26]} 3. d4 {[%emt 0:00:12]} d5 {[%emt 0:02:17]} 4. Bg2 {[%emt 0:00:55]} Nf6 {[%emt 0:01:35]} 5. O-O {[%emt 0:00:59]} O-O {[%emt 0:00:10]} 6. Nbd2 {[%emt 0:00:54]} a5 {[%emt 0:03:30]} 7. c4 {[%emt 0:04:51]} c6 {[%emt 0:01:15]} 8. cxd5 {[%emt 0:01:04]} cxd5 {[%emt 0:00:14]} 9. Nb1 {[%emt 0:00:12]} Nc6 {[%emt 0:05:46]} 10. Nc3 {[%emt 0:02:03]} Ne4 {[%emt 0:01:05]} 11. Bf4 {[%emt 0:02:45]} a4 {[%emt 0:09:10]} 12. Nxa4 {[%emt 0:09:35]} Qa5 {[%emt 0:01:02]} 13. b3 {[%emt 0:01:11]} b5 {[%emt 0:06:43]} 14. Rc1 {[%emt 0:03:05]} bxa4 {[%emt 0:11:14]} 15. Rxc6 {[%emt 0:00:16]} axb3 {[%emt 0:01:16]} 16. axb3 {[%emt 0:00:29]} Qb5 {[%emt 0:11:19]} 17. Rc7 {[%emt 0:04:41]} Ra2 {[%emt 0:03:17]} 18. Re1 {[%emt 0:25:32]} Bf5 {[%emt 0:12:27]} 19. Ng5 {[%emt 0:11:08]} Nxg5 {[%emt 0:14:01]} 20. Bxg5 {[%emt 0:00:33]} e6 {[%emt 0:00:19]} 21. Be7 {[%emt 0:09:27]} Re8 {[%emt 0:01:50]} 22. e3 {[%emt 0:03:14]} Rb2 {[%emt 0:07:35]} 23. Qa1 {[%emt 0:07:56]} Rxb3 {[%emt 0:00:17]} 24. Bf1 {[%emt 0:00:45]} Bd3 {[%emt 0:03:14]} 25. Bxd3 {[%emt 0:01:18]} Qxd3 {[%emt 0:00:12]} 26. Rec1 {[%emt 0:00:24]} h5 {[%emt 0:00:45]} 27. Qa4 {[%emt 0:01:56]} Reb8 {[%emt 0:00:59]} 28. Bd6 {[%emt 0:02:27]} Rb1 {[%emt 0:00:41]} 29. Qd7 {[%emt 0:00:37]} Rxc1+ {[%emt 0:00:58]} 30. Rxc1 {[%emt 0:00:06]} Rb1 {[%emt 0:00:21]} 31. Rxb1 {[%emt 0:00:58]} Qxb1+ {[%emt 0:00:05]} 32. Kg2 {[%emt 0:00:04]} Qe4+ {[%emt 0:00:20]} 33. Kg1 {[%emt 0:00:01]} Qb1+ {[%emt 0:00:15]} 34. Kg2 {[%emt 0:00:02]} Qe4+ {[%emt 0:00:10]} 35. Kg1 {[%emt 0:00:04]} 1/2-1/2